bitfinex/quotes_ETHUSD_20250708
["timestamp","ask_amount","ask_price","bid_price","bid_amount"]
[1751972775706,0.38983362,2581.0,2580.6,3.87500818]
[1751972775707,0.002,2581.0,2580.6,3.87500818]
[1751972776006,0.002,2581.0,2580.7,0.03874917]
[1751972778703,0.002,2581.0,2580.3,1.70899316]
[1751972778992,3.87651099,2581.0,2580.3,3.875451]
[1751972779189,15.029,2581.4,2580.3,3.875451]
[1751972779190,8.16884466,2583.0,2581.9,4.8997]
[1751972779486,0.1875944,2583.7,2583.1,4.4213174]
[1751972779487,0.39014948,2583.7,2583.1,4.4213174]
[1751972779791,1e-08,2583.7,2583.6,13.87056819]
[1751972780001,1e-08,2583.7,2583.6,32.91522713]
[1751972780218,1e-08,2583.7,2583.6,38.02345403]
[1751972780589,1e-08,2583.7,2583.6,38.30706267]
[1751972780785,1e-08,2583.7,2583.6,15.24377987]
[1751972780997,1e-08,2583.7,2583.6,23.92977987]
[1751972781716,1e-08,2583.7,2583.6,27.31869425]
[1751972781918,0.02998,2585.0,2584.9,3.86862161]
[1751972782118,0.02998,2585.0,2584.9,6.817]
[1751972782287,0.02998,2585.0,2584.9,6.826]
[1751972782488,0.002,2584.8,2584.6,6.863]
[1751972782690,0.002,2584.8,2584.7,3.86892095]
[1751972783012,0.002,2584.8,2584.7,5.41273502]
[1751972783222,0.002,2584.8,2584.7,0.1928]
[1751972783390,3.87077127,2584.8,2584.7,0.1928]
[1751972783586,0.002,2584.8,2584.5,0.1928]
[1751972783792,3.86905489,2584.7,2584.5,0.1928]
[1751972783988,0.1948,2584.8,2584.3,0.1928]
[1751972784197,0.002,2584.8,2583.9,6.859]
[1751972784396,0.002,2584.8,2584.6,0.1928]
[1751972784632,0.002,2584.8,2584.7,0.0386892]
[1751972784843,0.002,2584.8,2584.6,0.1928]
[1751972786857,0.002,2584.8,2584.7,0.0386892]
[1751972787012,0.002,2584.8,2584.7,3.86892095]
[1751972787211,0.002,2584.8,2584.7,0.0386892]
[1751972787409,0.002,2584.8,2584.6,4.06182474]
[1751972787610,0.002,2584.8,2584.7,3.90761015]
[1751972787816,0.13991995,2588.1,2586.9,0.55]
[1751972788120,0.13991995,2588.1,2587.0,15.77710552]
[1751972788321,0.13991995,2588.1,2588.0,3.86398763]
[1751972788725,0.13991995,2588.1,2588.0,3.9026275]
[1751972789332,0.13991995,2588.1,2588.0,4.41398763]
[1751972789542,0.27854388,2588.4,2587.8,7.8927]
[1751972789742,0.27854388,2588.4,2588.0,3.86398648]
[1751972790038,0.27854388,2588.4,2588.1,0.03863838]
[1751972790239,0.27854388,2588.4,2588.0,10.0]
[1751972790458,0.27854388,2588.4,2588.0,10.54744529]
[1751972790661,0.27854388,2588.4,2588.1,10.94082066]
[1751972790839,0.27854388,2588.4,2587.8,0.8267]
[1751972791151,0.27854388,2588.4,2588.0,7.078]
[1751972791525,0.27854388,2588.4,2588.1,0.03863838]
[1751972791740,0.27854388,2588.4,2588.1,7.11063838]
[1751972791915,0.27854388,2588.4,2587.8,2.8177]
[1751972792125,0.27854388,2588.4,2587.9,7.072]
[1751972792349,0.27854388,2588.4,2587.3,0.8093]
[1751972792552,3.8642126,2587.9,2587.4,9.062]
[1751972792711,0.38642126,2587.8,2587.4,7.071]
[1751972793045,3.86378089,2588.2,2587.3,3.86503304]
[1751972793245,0.27854388,2588.4,2587.5,3.86473429]
[1751972793434,0.27854388,2588.4,2587.8,3.86428096]
[1751972793751,0.27854388,2588.4,2588.1,3.86370869]
[1751972794139,0.27854388,2588.4,2588.1,3.86379137]
[1751972794330,0.27854388,2588.4,2587.9,7.068]
[1751972794650,0.27854388,2588.4,2588.3,3.86353977]
[1751972794848,0.27854388,2588.4,2588.3,10.95917516]
[1751972795051,0.27854388,2588.4,2588.3,10.92053977]
[1751972795515,0.27854388,2588.4,2588.3,12.37544923]
[1751972795717,0.27854388,2588.4,2588.3,10.92053977]
[1751972796121,0.27854388,2588.4,2588.3,12.90253977]
[1751972796850,0.27854388,2588.4,2588.3,3.86353977]
[1751972797053,0.27854388,2588.4,2588.3,10.90053977]
[1751972797657,3.86409971,2588.0,2587.2,1.99]
[1751972797952,0.38640997,2587.9,2587.6,0.1928]
[1751972798124,0.1928,2588.1,2587.6,0.1928]
[1751972798330,3.86401577,2588.0,2587.6,0.1928]
[1751972798648,3.8643702,2587.8,2587.6,0.1928]
[1751972798958,3.8649081,2587.4,2586.4,0.8087]
[1751972799138,4.68345897,2587.7,2587.3,0.1928]
[1751972799348,3.86488366,2587.4,2587.3,0.1928]
[1751972799652,3.86534394,2587.1,2587.0,0.1928]
[1751972800612,3.86524829,2587.2,2587.0,0.1928]
[1751972800818,3.86600877,2586.7,2586.2,1.99]
[1751972801117,3.86628244,2586.5,2586.4,0.1928]
[1751972801449,3.86628244,2586.5,2585.6,9.289]
[1751972801450,3.86653449,2586.3,2585.6,9.289]
[1751972801614,3.86670146,2586.2,2586.1,0.1928]
[1751972801818,3.86745888,2585.7,2585.0,4.67010297]
[1751972802016,0.96612398,2586.1,2585.6,0.1928]
[1751972802231,4.62282468,2585.7,2585.6,0.1928]
[1751972802434,0.7554,2585.7,2585.6,0.1928]
[1751972803058,4.62282468,2585.7,2585.6,0.1928]
[1751972803264,0.7554,2585.7,2585.6,0.1928]
[1751972804329,3.86707377,2586.0,2585.6,0.1928]
[1751972804528,0.8057,2586.2,2585.7,0.03867424]
[1751972804730,0.8057,2586.2,2585.9,0.1928]
[1751972804955,4.67237933,2586.2,2585.9,0.1928]
[1751972805154,3.86599781,2586.7,2586.0,0.03866976]
[1751972805355,0.9985,2586.6,2586.1,0.1928]
[1751972805532,3.86622849,2586.5,2586.1,0.1928]
[1751972805726,0.48647285,2586.4,2586.0,0.1928]
[1751972805935,3.86682649,2586.1,2586.0,0.1928]
[1751972806161,4.05956578,2586.2,2585.7,0.1928]
[1751972806671,3.86683791,2586.1,2585.7,0.1928]
[1751972806867,0.1928,2586.2,2585.7,0.1928]
[1751972807068,4.67182772,2586.6,2584.9,1.99]
[1751972807069,0.7685,2585.9,2584.9,1.99]
[1751972807370,3.86802305,2585.3,2584.6,9.289]
[1751972807570,3.86818429,2585.2,2585.0,0.1928]
[1751972807783,3.86818058,2585.2,2585.0,0.1928]
[1751972808277,3.86353977,2588.3,2585.7,0.8063]
[1751972808436,0.53061827,2588.3,2587.4,0.60519664]
[1751972808771,0.53061827,2588.3,2587.5,0.03864734]
[1751972808933,0.28054388,2588.4,2587.6,3.86457687]
[1751972808934,4.14399868,2588.4,2587.6,3.86457687]
[1751972809135,0.28054388,2588.4,2587.7,0.03864435]
[1751972809543,0.28054388,2588.4,2587.6,3.86458311]
[1751972809743,3.86367154,2588.3,2587.4,0.60519664]
[1751972809956,3.8637065,2588.2,2587.4,4.46996772]
[1751972810271,3.8637065,2588.2,2587.4,0.60519664]
[1751972810272,3.86371636,2588.2,2587.4,0.60519664]
[1751972810436,3.86407615,2588.0,2587.4,0.60519664]
[1751972811174,14.221,2587.9,2587.4,0.60519664]
[1751972811341,3.86443559,2587.7,2587.4,0.60519664]
[1751972811669,3.86462306,2587.6,2587.4,0.60519664]
[1751972812069,3.86473429,2587.5,2587.4,0.60519664]
[1751972813845,3.86492242,2587.4,2586.6,3.86607091]
[1751972814179,18.04506033,2587.3,2586.7,1.34480816]
[1751972814344,4.64449387,2587.2,2586.8,1.34480816]
[1751972814686,4.64449387,2587.2,2586.4,3.86632047]
[1751972814856,4.64452048,2587.2,2586.5,1.34657464]
[1751972815036,3.86563284,2586.9,2586.1,5.54314731]
[1751972815371,3.86586907,2586.8,2586.2,1.34691825]
[1751972815570,3.86637797,2586.4,2586.3,1.34691825]
[1751972815757,3.86653315,2586.3,2585.8,1.67638383]
[1751972815957,3.86653315,2586.3,2585.9,1.34888203]
[1751972815958,3.86652747,2586.3,2585.9,1.34888203]
[1751972816162,4.640055,2586.2,2586.0,1.34888203]
[1751972816386,14.137,2586.1,2585.8,1.67638383]
[1751972816542,18.00392337,2586.1,2585.9,1.35051641]
[1751972816867,3.86701643,2586.0,2585.5,1.67638383]
[1751972817057,3.86730742,2585.8,2585.6,1.3510145]
[1751972817258,3.86740437,2585.8,2585.7,1.3510145]
[1751972817465,3.86727511,2585.8,2585.7,1.3510145]
[1751972817663,14.137,2586.1,2585.3,1.67638383]
[1751972817866,3.86753756,2585.7,2585.4,1.352587]
[1751972818045,3.86753756,2585.7,2585.2,1.67638383]
[1751972818046,14.121,2585.6,2585.5,1.352587]
[1751972818565,17.98857425,2585.6,2585.5,1.352587]
[1751972819452,14.121,2585.6,2585.3,0.1928]
[1751972819660,5.85973385,2585.5,2585.0,1.67638383]
[1751972819843,2.1848,2585.5,2585.1,0.1928]
[1751972820046,3.86847855,2585.0,2584.7,0.1928]
[1751972820262,14.079,2584.9,2584.8,1.35218019]
[1751972820471,14.079,2584.9,2584.8,1.35256606]
[1751972820472,17.94762161,2584.9,2584.8,1.35256606]
[1751972820640,17.94765821,2584.9,2584.6,0.1928]
[1751972820970,3.8691485,2584.6,2584.4,0.02940619]
[1751972821173,14.067,2584.5,2584.4,0.02940619]
[1751972821877,17.93622035,2584.5,2584.4,0.02940619]
[1751972822039,14.067,2584.5,2584.2,0.1928]
[1751972822238,14.067,2584.5,2583.7,1.67638383]
[1751972822239,0.7539,2584.4,2583.7,1.67638383]
[1751972822468,0.7539,2584.4,2583.4,4.18442005]
[1751972822469,0.1928,2584.2,2583.8,0.1928]
[1751972822779,14.043,2584.1,2583.9,0.03870118]
[1751972823076,14.043,2584.1,2583.9,3.8700042]
[1751972823371,14.043,2584.1,2584.0,0.1928]
[1751972823743,14.043,2584.1,2583.8,0.1928]
[1751972824871,14.043,2584.1,2583.3,3.87093449]
[1751972825192,14.01,2584.0,2583.7,3.87034756]
[1751972825375,14.004,2584.0,2583.9,0.1928]
[1751972825549,3.87011881,2583.9,2583.6,0.1928]
[1751972825747,14.004,2584.0,2582.5,1.67638383]
[1751972825748,3.870523,2583.7,2582.5,1.67638383]
[1751972825951,3.87071801,2583.5,2582.5,0.8087]
[1751972826177,0.1928,2583.1,2582.7,0.1928]
[1751972826387,0.7821,2583.4,2582.7,0.1928]
[1751972826566,14.7831,2583.4,2583.0,0.1928]
[1751972827097,18.65398979,2583.4,2583.0,0.1928]
[1751972827397,14.7831,2583.4,2583.0,0.1928]
[1751972827553,18.65404165,2583.4,2583.0,0.1928]
[1751972827753,3.87103337,2583.3,2582.7,0.03871916]
[1751972828071,0.1928,2583.3,2582.9,0.1928]
[1751972828379,3.87117117,2583.2,2582.9,0.1928]
[1751972828596,13.973,2583.1,2582.9,0.1928]
[1751972829484,17.84434473,2583.1,2582.7,0.1928]
[1751972829686,3.87148988,2583.0,2582.7,0.1928]
[1751972829982,17.84438507,2583.1,2582.7,0.1928]
[1751972830687,17.84433269,2583.1,2582.7,0.1928]
[1751972831386,13.973,2583.1,2582.7,0.1928]
[1751972831853,13.973,2583.1,2582.2,0.1200626]
[1751972832056,0.1928,2583.0,2582.5,0.1936]
[1751972832780,4.06427411,2583.0,2582.5,0.1936]
[1751972832952,0.1928,2583.0,2582.5,0.1936]
[1751972833174,4.06428447,2583.0,2582.5,0.1936]
[1751972834407,3.87169577,2582.9,2582.5,0.1936]
[1751972834701,0.1928,2583.0,2582.5,0.1936]
[1751972834702,17.74377594,2582.8,2582.5,0.1936]
[1751972834905,17.74380312,2582.8,2582.2,0.1200626]
[1751972835109,3.87191698,2582.7,2582.3,0.1936]
[1751972835275,3.87214206,2582.6,2582.3,0.1936]
[1751972835718,17.73328164,2582.5,2582.2,0.1200626]
[1751972835893,13.861,2582.5,2582.2,0.1200626]
[1751972836077,3.87246238,2582.4,2582.2,0.1200626]
[1751972836414,3.87251674,2582.3,2582.2,0.1200626]
[1751972837109,3.87245271,2582.4,2582.2,0.1200626]
[1751972837276,17.92687525,2582.5,2582.2,0.1200626]
[1751972837483,3.87251674,2582.3,2582.2,0.1200626]
[1751972837703,13.825,2582.3,2582.2,0.1200626]
[1751972838228,17.69751674,2582.3,2582.2,0.1200626]
[1751972838429,19.46725506,2582.3,2582.2,0.1200626]
[1751972839581,30.28135506,2582.3,2582.2,0.1200626]
[1751972841881,30.28135506,2582.3,2582.2,1e-08]
[1751972841882,34.83135506,2582.3,2582.2,1e-08]
[1751972842312,3.87459696,2581.0,2580.7,0.1936]
[1751972842519,13.758,2580.9,2580.7,0.1936]
[1751972843078,13.758,2580.9,2580.5,0.001]
[1751972843278,13.758,2580.9,2580.5,0.1946]
[1751972844216,17.63263263,2580.9,2580.5,0.1946]
[1751972844517,3.87478013,2580.8,2580.5,0.1946]
[1751972844701,13.73,2580.7,2580.5,0.1946]
[1751972846691,13.73,2580.7,2580.6,3.87506781]
[1751972846893,13.73,2580.7,2580.5,0.1946]
[1751972847133,6.844,2580.9,2580.6,4.06854657]
[1751972847434,6.844,2581.2,2580.8,3.87474484]
[1751972847591,6.844,2581.2,2580.9,3.87461225]
[1751972847796,6.844,2581.2,2580.8,4.06828991]
[1751972848640,6.844,2581.2,2580.8,0.1936]
[1751972848931,6.841,2581.2,2580.8,0.1936]
[1751972850438,6.841,2581.2,2581.0,0.1936]
[1751972851437,6.841,2581.2,2581.0,0.3059897]
[1751972851638,0.1936,2581.4,2581.0,0.3059897]
[1751972851639,6.811,2581.3,2581.0,0.3059897]
[1751972853041,0.1936,2581.4,2581.0,0.3059897]
[1751972853250,7.0046,2581.4,2581.0,0.3059897]
[1751972853601,0.1936,2581.4,2581.0,0.3059897]
[1751972853802,6.9936,2581.4,2581.0,0.3059897]
[1751972854041,6.9936,2581.4,2581.0,4.18044216]
[1751972854240,6.9936,2581.4,2581.0,0.3059897]
[1751972854440,10.86753702,2581.4,2581.0,0.3059897]
[1751972854747,10.86753702,2581.4,2581.0,0.2817797]
[1751972855235,6.9936,2581.4,2581.0,0.2817797]
[1751972856147,10.86747882,2581.4,2581.0,0.2817797]
[1751972856349,6.9936,2581.4,2581.0,0.2817797]
[1751972860349,9.305,2581.8,2581.1,0.03874317]
[1751972860548,6.9406,2581.8,2581.4,0.1936]
[1751972860851,0.1936,2581.8,2581.4,4.06745762]
[1751972861630,0.1936,2581.8,2581.4,0.3059897]
[1751972861827,7.4922,2582.1,2581.4,3.98624705]
[1751972862025,0.1936,2582.0,2581.5,0.1936]
[1751972862633,0.1936,2582.0,2581.5,0.3059897]
[1751972863035,4.06657319,2582.0,2581.5,0.3059897]
[1751972865025,3.87311725,2581.9,2581.5,0.3059897]
[1751972865226,0.1936,2582.0,2581.5,0.3059897]
[1751972865537,4.06657538,2582.0,2581.6,1.3684579]
[1751972865733,0.98754154,2582.0,2581.5,1.1006897]
[1751972865930,3.87349238,2581.7,2581.5,0.1123897]
[1751972866130,0.1936,2581.7,2581.5,0.1123897]
[1751972866559,4.06704745,2581.7,2581.5,0.1123897]
[1751972867061,0.1936,2581.7,2581.5,0.1123897]
[1751972873556,6.681,2582.2,2581.5,3.98604484]
[1751972873734,0.1936,2582.0,2581.5,4.17964484]
[1751972874166,0.1936,2582.0,2581.5,0.3059897]
[1751972875163,0.1936,2582.0,2581.5,4.17962959]
[1751972875363,0.1936,2582.0,2581.5,0.3059897]
[1751972876066,0.1936,2582.0,2581.5,4.17969741]
[1751972876441,0.1936,2582.0,2581.5,4.17964827]
[1751972876766,0.1956,2582.0,2581.5,4.17964827]
[1751972878139,0.1956,2582.0,2581.5,0.3059897]
[1751972878340,0.98971726,2582.0,2581.5,0.3059897]
[1751972878569,4.8626938,2582.0,2581.5,0.3059897]
[1751972878731,0.1956,2582.0,2581.5,4.17963958]
[1751972878936,0.1956,2582.0,2581.5,4.17964222]
[1751972880669,0.1956,2582.0,2581.5,0.3059897]
[1751972881462,0.1956,2582.0,2581.5,4.17969998]
[1751972881667,0.1956,2582.0,2581.5,0.3059897]
[1751972882086,0.002,2582.0,2581.6,3.91223216]
[1751972882392,0.002,2582.0,2581.7,0.1936]
[1751972882687,0.002,2582.0,2581.9,3.87311669]
[1751972882984,0.002,2582.0,2581.9,5.2433411]
[1751972883884,0.002,2582.0,2581.9,1.48261411]
[1751972884051,0.002,2582.0,2581.9,11.9547308]
[1751972884254,0.002,2582.0,2581.9,3.98550639]
[1751972884482,0.002,2582.0,2581.9,10.57650639]
[1751972885260,0.002,2582.0,2581.9,0.1123897]
[1751972890295,3.87496669,2582.0,2581.9,0.1123897]
[1751972890603,4.72825531,2582.0,2581.9,0.1123897]
[1751972891410,14.72825531,2582.0,2581.9,0.1123897]
[1751972892903,0.85528862,2582.0,2581.9,0.1123897]
[1751972893106,0.002,2582.0,2581.9,0.1123897]
[1751972893406,4.06856669,2582.0,2581.9,0.1123897]
[1751972899595,4.18978764,2582.0,2581.9,0.1123897]
[1751972900817,32.39924403,2582.0,2581.9,1e-08]
[1751972901019,3.87431715,2581.1,2581.0,0.001]
[1751972901197,3.9955381,2581.1,2581.0,0.001]
[1751972902321,3.99556259,2581.1,2581.0,0.001]
[1751972906505,0.12124544,2581.1,2581.0,0.001]
[1751972906696,6.59824544,2581.1,2581.0,0.001]
[1751972906895,10.47256259,2581.1,2581.0,0.001]
[1751972907300,6.59824544,2581.1,2581.0,0.001]
[1751972907615,10.47256259,2581.1,2581.0,0.001]
[1751972908125,6.59824544,2581.1,2581.0,0.001]
[1751972908429,10.47256259,2581.1,2581.0,0.001]
[1751972908631,12.77329026,2581.1,2581.0,0.001]
[1751972910233,12.76429026,2581.1,2581.0,0.001]
[1751972910733,6.58924544,2581.1,2581.0,0.001]
[1751972910902,0.31484544,2581.1,2581.0,0.001]
[1751972912353,0.1936,2581.1,2581.0,0.1190605]
[1751972914250,0.31484615,2581.1,2581.0,0.1190605]
[1751972916827,0.12124615,2581.1,2581.0,0.1190605]
[1751972917516,0.12124615,2581.2,2581.0,0.1190605]
[1751972917722,0.12124615,2581.2,2581.0,4.1870399]
[1751972918053,0.12124615,2581.1,2581.0,4.1870399]
[1751972918252,0.1936,2581.5,2581.1,3.87429212]
[1751972918445,0.1212327,2581.4,2581.2,3.9128201]
[1751972918640,0.1212327,2581.3,2581.2,3.87407843]
[1751972918953,0.1936,2581.8,2581.2,3.87407843]
[1751972918954,6.6156,2581.8,2581.3,0.1936]
[1751972919126,0.12122909,2581.7,2581.3,0.1936]
[1751972919326,0.12122909,2581.6,2581.3,0.1936]
[1751972919557,0.12122909,2581.5,2581.3,0.1936]
[1751972919757,0.12122909,2581.4,2581.3,0.1936]
[1751972919958,0.12122909,2581.4,2581.3,4.06761696]
[1751972920167,0.12122909,2581.7,2581.3,4.06761696]
[1751972920369,0.12122909,2581.6,2581.3,0.1936]
[1751972920555,0.12122909,2581.5,2581.3,0.1936]
[1751972920736,0.1212155,2581.4,2581.3,0.1936]
[1751972920932,0.1212155,2581.7,2581.3,0.1936]
[1751972921157,0.1212155,2581.6,2581.3,0.1936]
[1751972921465,0.1212155,2581.5,2581.3,0.1936]
[1751972921668,0.1212155,2581.4,2581.3,0.1936]
[1751972922033,0.1212155,2581.7,2581.3,0.1936]
[1751972922238,0.1212155,2581.6,2581.3,0.1936]
[1751972922574,0.1212155,2581.5,2581.1,0.1180605]
[1751972922873,0.71429694,2581.5,2581.1,0.1180605]
[1751972923048,0.1212155,2581.4,2581.1,0.1180605]
[1751972924236,0.1936,2581.3,2581.1,0.1180605]
[1751972924438,0.1212155,2581.2,2581.1,0.1180605]
[1751972924653,0.1212155,2581.2,2581.1,3.99237765]
[1751972924969,11.7631806,2581.9,2581.2,3.87416692]
[1751972924970,0.1936,2581.7,2581.2,3.87416692]
[1751972925175,0.12122346,2581.6,2581.2,3.87416692]
[1751972925370,0.12122346,2581.5,2581.2,3.87416692]
[1751972925539,0.12122346,2581.4,2581.2,3.87416692]
[1751972925868,0.12122346,2581.3,2581.1,4.18589534]
[1751972926172,3.8735781,2581.6,2581.1,0.3116605]
[1751972926371,0.31482033,2581.5,2581.1,0.3116605]
[1751972926539,0.12122033,2581.4,2581.1,0.3116605]
[1751972927145,0.12122033,2581.3,2581.1,0.3116605]
[1751972927372,0.12122033,2581.2,2581.1,4.1859701]
[1751972927576,0.1936,2581.7,2581.3,3.87391645]
[1751972927766,0.12121426,2581.6,2581.4,0.8066]
[1751972927963,0.12121426,2581.5,2581.4,0.8066]
[1751972928276,0.12121214,2581.5,2581.4,4.68033205]
[1751972928480,0.12120694,2581.9,2581.8,3.87318371]
[1751972928779,0.12120481,2581.9,2581.8,4.68881842]
[1751972928977,0.12120481,2581.9,2581.8,4.92115108]
[1751972929341,0.002,2582.0,2581.9,3.87311669]
[1751972929578,0.002,2582.0,2581.9,10.25311669]
[1751972930344,0.002,2582.0,2581.9,10.29087129]
[1751972930653,0.002,2582.0,2581.9,0.0377546]
[1751972930857,0.002,2582.0,2581.9,10.29087129]
[1751972931656,0.002,2582.0,2581.9,3.91087129]
[1751972931856,0.002,2582.0,2581.9,10.28387129]
[1751972932464,0.002,2582.0,2581.9,10.28087129]
[1751972933382,0.002,2582.0,2581.9,11.79721441]
[1751972934765,0.002,2582.0,2581.9,10.27187129]
[1751972934969,0.002,2582.0,2581.9,3.91087129]
[1751972935155,0.002,2582.0,2581.9,10.26687129]
[1751972935557,1e-08,2582.0,2581.9,11.09467129]
[1751972935769,1e-08,2582.0,2581.9,24.22572005]
[1751972936103,1e-08,2582.0,2581.9,17.31972005]
[1751972936597,1e-08,2582.0,2581.9,25.32372005]
[1751972937401,0.002,2583.0,2582.9,3.87161717]
[1751972937706,0.002,2583.0,2582.9,10.99171717]
[1751972938003,0.002,2583.0,2582.9,13.54295823]
[1751972939191,0.002,2583.0,2582.9,7.19295823]
[1751972939501,1e-08,2583.0,2582.9,11.02443334]
[1751972939793,2.4137,2584.3,2583.8,3.87023262]
[1751972939956,0.12111243,2584.2,2583.8,6.345]
[1751972940363,0.12111243,2584.2,2583.4,3.87081637]
[1751972940585,0.59674696,2584.2,2583.5,6.344]
[1751972940891,0.59674696,2584.2,2583.4,5.52081637]
[1751972940892,0.12111243,2584.1,2583.6,10.21155494]
[1751972941389,4.34531255,2584.2,2583.6,10.21155494]
[1751972941598,4.34531255,2584.2,2583.3,1.649]
[1751972941599,0.51090126,2584.1,2583.3,1.649]
[1751972941763,3.8706368,2583.6,2583.1,0.8006]
[1751972942068,0.002,2583.0,2582.6,4.67108509]
[1751972942488,0.002,2583.0,2582.7,6.337]
[1751972943063,0.002,2583.0,2582.8,6.337]
[1751972944163,0.002,2583.0,2582.8,7.43180835]
[1751972944358,0.002,2583.0,2582.6,0.7991]
[1751972944561,3.87346936,2583.0,2582.4,1.649]
[1751972944789,0.002,2583.0,2581.9,2.58104876]
[1751972945096,0.7519,2582.8,2582.0,4.6692314]
[1751972945391,3.87196917,2582.7,2582.0,10.9991947]
[1751972945590,0.7519,2582.8,2582.0,7.1263]
[1751972945803,0.7519,2582.8,2582.4,0.1936]
[1751972946159,0.1928,2582.9,2582.4,4.06587659]
[1751972946579,0.1928,2582.9,2582.4,10.39187659]
[1751972947290,0.1928,2582.9,2582.4,10.39183932]
[1751972947461,0.002,2583.0,2582.6,3.87199251]
[1751972947661,0.002,2583.0,2582.7,4.06464772]
[1751972947963,0.002,2583.0,2582.7,10.38764772]
[1751972948294,0.002,2583.0,2582.9,3.87161717]
[1751972948466,0.002,2583.0,2582.9,4.06441717]
[1751972950067,0.002,2583.0,2582.9,4.10313334]
[1751972950263,0.002,2583.0,2582.9,5.53290875]
[1751972950575,0.002,2583.0,2582.9,6.35390875]
[1751972951577,0.002,2583.0,2582.9,6.31519258]
[1751972952000,0.002,2583.0,2582.9,12.62419258]
[1751972952213,0.002,2583.0,2582.9,11.19441717]
[1751972952982,0.002,2583.0,2582.9,4.88541717]
[1751972953218,0.002,2583.0,2582.9,11.19341717]
[1751972954030,0.002,2583.0,2582.9,11.19741717]
[1751972955232,0.002,2583.0,2582.9,1.0138]
[1751972955393,0.002,2583.0,2582.9,6.4978]
[1751972955738,0.002,2583.0,2582.6,0.7825]
[1751972956033,0.002,2583.0,2582.7,6.4968]
[1751972956717,3.87354515,2583.0,2582.7,0.1928]
[1751972956919,3.87354515,2583.0,2582.3,0.7825]
[1751972956920,0.8168,2582.9,2582.5,0.1936]
[1751972957215,4.6529944,2582.3,2582.1,0.0377546]
[1751972957605,3.87266671,2582.2,2582.1,0.0377546]
[1751972958122,4.91883282,2582.2,2582.1,0.0377546]
[1751972960319,4.06626671,2582.2,2582.1,0.0377546]
[1751972962187,11.14416671,2582.2,2582.1,0.0377546]
[1751972962793,38.3895231,2582.2,2582.1,1e-08]
[1751972963099,38.3895231,2582.2,2581.1,0.0803059]
[1751972963100,3.87416705,2581.2,2581.1,0.0803059]
[1751972963892,3.87407499,2581.3,2581.1,0.0803059]
[1751972964092,4.6401294,2581.4,2581.1,0.0803059]
[1751972964292,3.87416705,2581.2,2581.1,0.0803059]
[1751972964528,3.87406192,2581.3,2581.1,0.0803059]
[1751972965020,0.12123018,2581.2,2581.1,0.0803059]
[1751972965325,3.87406192,2581.3,2581.1,0.0803059]
[1751972966722,3.87416705,2581.2,2581.1,0.0803059]
[1751972967105,3.87410089,2581.3,2581.1,0.0803059]
[1751972967305,3.87416705,2581.2,2581.1,0.0803059]
[1751972967908,4.34980158,2581.2,2581.1,0.0803059]
[1751972968116,10.64680158,2581.2,2581.1,0.0803059]
[1751972969729,11.42630158,2581.2,2581.1,0.0803059]
[1751972970223,21.42630158,2581.2,2581.1,0.0803059]
[1751972971023,21.54755807,2581.2,2581.1,0.0803059]
[1751972971595,22.09755807,2581.2,2581.1,0.0803059]
[1751972972730,22.09755807,2581.2,2581.0,0.001]
[1751972972731,16.04731715,2581.1,2581.0,0.02023581]
[1751972972932,20.65318926,2581.1,2581.0,1e-08]
[1751972973123,20.65318926,2581.1,2580.8,1e-08]
[1751972973124,15.19151738,2580.9,2580.8,1e-08]
[1751972973443,21.48951738,2580.9,2580.8,1e-08]
[1751972973906,21.06079385,2580.9,2580.8,1e-08]
[1751972974306,20.93951738,2580.9,2580.8,1e-08]
[1751972974502,21.53642611,2580.9,2580.8,1e-08]
[1751972975432,15.23842611,2580.9,2580.8,1e-08]
[1751972975609,21.53642611,2580.9,2580.8,1e-08]
[1751972977335,21.41515191,2580.9,2580.8,1e-08]
[1751972977926,15.11715191,2580.9,2580.8,1e-08]
[1751972978110,14.35025191,2580.9,2580.8,1e-08]
[1751972979601,14.47151944,2580.9,2580.8,1e-08]
[1751972981318,20.77051944,2580.9,2580.8,1e-08]
[1751972983907,10.77051944,2580.9,2580.8,1e-08]
[1751972984720,10.7705259,2580.9,2580.8,1e-08]
[1751972985009,20.7705259,2580.9,2580.8,1e-08]
[1751972985210,21.5213259,2580.9,2580.8,1e-08]
[1751972985411,22.0713259,2580.9,2580.8,1e-08]
[1751972987057,15.2223259,2580.9,2580.8,1e-08]
[1751972987231,21.5203259,2580.9,2580.8,1e-08]
[1751972987938,15.2223259,2580.9,2580.8,1e-08]
[1751972988125,13.99589137,2580.9,2580.8,1e-08]
[1751972988331,20.29389137,2580.9,2580.8,1e-08]
[1751972989545,21.08739137,2580.9,2580.8,1e-08]
[1751972989753,21.63739137,2580.9,2580.8,1e-08]
[1751972990913,21.63739137,2580.9,2580.5,0.001]
[1751972990914,13.87506781,2580.6,2580.5,0.001]
[1751972991116,13.9963418,2580.6,2580.5,0.001]
[1751972992754,15.6203418,2580.6,2580.5,0.001]
[1751972995824,3.87566855,2580.2,2580.1,0.0729006]
[1751972996029,11.79560007,2580.2,2580.1,0.0729006]
[1751972998532,10.29294254,2580.2,2580.1,0.0729006]
[1751972999755,0.12127399,2580.2,2580.1,0.0729006]
[1751972999944,10.29294254,2580.2,2580.1,0.0729006]
[1751973000148,6.41727399,2580.2,2580.1,0.0729006]
[1751973000644,0.12127399,2580.2,2580.1,0.0729006]
[1751973000847,6.61087399,2580.2,2580.1,0.0729006]
[1751973002457,6.60987399,2580.2,2580.1,0.0729006]
[1751973002677,10.48554254,2580.2,2580.1,0.0729006]
[1751973003059,6.60987399,2580.2,2580.1,0.0729006]
[1751973005380,0.12127399,2580.2,2580.1,0.0729006]
[1751973006858,0.12127399,2580.2,2580.1,4.78957754]
[1751973007051,0.12127399,2580.2,2580.1,14.84887528]
[1751973007251,0.1956,2581.2,2580.1,20.13219834]
[1751973007451,0.1956,2581.2,2580.9,4.67671414]
[1751973007452,0.002,2581.2,2580.9,4.67671414]
[1751973007887,0.002,2581.2,2580.9,4.67665239]
[1751973008091,0.002,2581.2,2580.9,4.87025239]
[1751973008679,0.002,2581.2,2580.9,0.9957]
[1751973009769,0.002,2581.2,2581.1,3.87431715]
[1751973009969,0.002,2581.2,2581.1,4.06791715]
[1751973010662,0.002,2581.2,2581.1,4.89956032]